fUSD/lending_fUSD_20250124
["ID","MTS","AMOUNT","RATE_DAILY","PERIOD"]
[350211604,1737695439949,-8947.21879473,0.00019,2]
[350211605,1737695439960,-8943.78386462,0.00019,2]
[350211606,1737695439971,-9077.54866152,0.00019,2]
[350211607,1737695439983,-8943.84023489,0.00019,2]
[350211608,1737695440025,-8458.8754854,0.00019,2]
[350211609,1737695440083,-365.78550015,0.00019,2]
[350211610,1737695440094,-253.45,0.00019,2]
[350211611,1737695440141,-82120.2714392,0.00019,2]
[350211612,1737695440199,-624.79062538,0.00019,2]
[350211613,1737695440210,-1047.194496,0.00019,2]
[350211745,1737695442784,-2295.4493533,0.00019,2]
[350211752,1737695443010,-6129.49685154,0.00019,2]
[350211772,1737695445781,-500.0,0.00018999,2]
[350211773,1737695445791,-156025.5293406,0.00019,2]
[350211774,1737695445804,-408.35146807,0.00019,2]
[350211775,1737695445840,-2852.5,0.00019,2]
[350211776,1737695445899,-19308.98811669,0.00019,2]
[350211777,1737695445910,-147741.23535449,0.00019,2]
[350211778,1737695445919,-567.0,0.00019003,2]
[350211779,1737695445928,-636.0,0.00019003,2]
[350211780,1737695445937,-275.081,0.00019003,2]
[350211781,1737695445948,-675.0,0.00019003,2]
[350211782,1737695445957,-2947.032,0.00019003,2]
[350211783,1737695445967,-150.0,0.00019003,2]
[350211784,1737695445977,-1205.99450203,0.00019011,2]
[350211785,1737695445986,-475.07167991,0.00019096,2]
[350211786,1737695445996,-657.8497833,0.0001911,2]
[350211787,1737695446005,-1205.99450203,0.00019119,2]
[350211788,1737695446014,-773.52,0.00019123,2]
[350211789,1737695446024,-773.52,0.00019123,2]
[350211790,1737695446033,-773.52,0.00019123,2]
[350211791,1737695446042,-773.52,0.00019123,2]
[350211792,1737695446051,-773.52,0.00019123,2]
[350211793,1737695446060,-1543.19,0.00019123,2]
[350211794,1737695446069,-600.0,0.00019164,2]
[350211795,1737695446078,-500.0,0.0001917,2]
[350211796,1737695446087,-500.0,0.0001917,2]
[350211797,1737695446096,-500.0,0.0001917,2]
[350211798,1737695446105,-519.18595336,0.0001917,2]
[350211799,1737695446114,-500.0,0.0001917,2]
[350211800,1737695446123,-500.0,0.0001917,2]
[350211801,1737695446132,-517.88716177,0.0001917,2]
[350211802,1737695446141,-500.0,0.0001917,2]
[350211804,1737695446150,-500.0,0.0001917,2]
[350211806,1737695446159,-500.0,0.0001917,2]
[350211807,1737695446168,-500.0,0.0001917,2]
[350211808,1737695446177,-500.0,0.0001917,2]
[350211809,1737695446186,-500.0,0.0001917,2]
[350211811,1737695446196,-500.0,0.0001917,2]
[350211812,1737695446204,-500.0,0.0001917,2]
[350211813,1737695446214,-500.0,0.0001917,2]
[350211814,1737695446223,-500.0,0.0001917,2]
[350211815,1737695446233,-500.0,0.0001917,2]
[350211816,1737695446242,-500.0,0.0001917,2]
[350211817,1737695446251,-500.0,0.0001917,2]
[350211819,1737695446260,-500.0,0.0001917,2]
[350211820,1737695446269,-342.29,0.0001917,2]
[350211821,1737695446278,-500.0,0.0001917,2]
[350211822,1737695446286,-500.0,0.0001917,2]
[350211823,1737695446296,-286.82144152,0.0001917,2]
[350211824,1737695446305,-500.0,0.0001917,2]
[350211825,1737695446314,-500.0,0.0001917,2]
[350211826,1737695446323,-500.0,0.0001917,2]
[350211827,1737695446332,-500.0,0.0001917,2]
[350211828,1737695446341,-158.67,0.0001917,2]
[350211829,1737695446351,-500.0,0.0001917,2]
[350211830,1737695446359,-500.0,0.0001917,2]
[350211831,1737695446368,-500.0,0.0001917,2]
[350211832,1737695446378,-500.0,0.0001917,2]
[350211833,1737695446387,-500.0,0.0001917,2]
[350211834,1737695446395,-1590.81,0.0001917,2]
[350211835,1737695446408,-701.28,0.0001917,2]
[350211836,1737695446417,-500.0,0.0001917,2]
[350211837,1737695446427,-849.95,0.0001917,2]
[350211838,1737695446436,-771.87,0.0001917,2]
[350211839,1737695446446,-520.36,0.0001917,2]
[350211840,1737695446455,-1391.43,0.0001917,2]
[350211841,1737695446464,-500.0,0.0001917,2]
[350211842,1737695446474,-500.0,0.0001917,2]
[350211843,1737695446483,-1280.97,0.0001917,2]
[350211844,1737695446492,-500.0,0.0001917,2]
[350211845,1737695446501,-1151.73,0.0001917,2]
[350211846,1737695446510,-2406.41,0.0001917,2]
[350211847,1737695446519,-500.0,0.0001917,2]
[350211848,1737695446528,-554.8,0.0001917,2]
[350211849,1737695446537,-500.0,0.0001917,2]
[350211850,1737695446546,-500.0,0.0001917,2]
[350211851,1737695446555,-500.0,0.0001917,2]
[350211852,1737695446564,-500.0,0.0001917,2]
[350211853,1737695446573,-500.0,0.0001917,2]
[350211854,1737695446584,-500.0,0.0001917,2]
[350211855,1737695446594,-635.34,0.0001917,2]
[350211856,1737695446603,-868.92,0.0001917,2]
[350211857,1737695446612,-500.0,0.0001917,2]
[350211858,1737695446622,-500.0,0.0001917,2]
[350211859,1737695446631,-500.0,0.0001917,2]
[350211860,1737695446640,-500.0,0.0001917,2]
[350211861,1737695446649,-935.83,0.0001917,2]
[350211862,1737695446659,-500.0,0.0001917,2]
[350211863,1737695446668,-500.0,0.0001917,2]
[350211864,1737695446677,-500.0,0.0001917,2]
[350211865,1737695446686,-500.0,0.0001917,2]
[350211866,1737695446695,-1230.87,0.0001917,2]
[350211867,1737695446704,-500.0,0.0001917,2]
[350211868,1737695446714,-442.255708,0.0001917,2]
[350211869,1737695446723,-85594.95768995,0.0001917,2]
[350211870,1737695446740,-3785.15416186,0.0001917,2]
[350211871,1737695446760,-9820.37016864,0.0001917,2]
[350211872,1737695446769,-500.0,0.00019171,2]
[350211873,1737695446778,-267.03024967,0.00019171,2]
[350211874,1737695446787,-500.0,0.00019171,2]
[350211875,1737695446795,-500.0,0.00019171,2]
[350211876,1737695446805,-503.14275106,0.00019171,2]
[350211877,1737695446814,-500.0,0.00019171,2]
[350211878,1737695446823,-500.0,0.00019171,2]
[350211879,1737695446832,-500.0,0.00019171,2]
[350211880,1737695446841,-295.46776251,0.00019171,2]
[350211881,1737695446850,-500.0,0.00019171,2]
[350211882,1737695446859,-500.0,0.00019171,2]
[350211883,1737695446868,-500.0,0.00019171,2]
[350211884,1737695446880,-500.0,0.00019171,2]
[350211885,1737695446889,-500.0,0.00019171,2]
[350211886,1737695446897,-500.0,0.00019171,2]
[350211887,1737695446907,-203.36449975,0.00019171,2]
[350211888,1737695446915,-500.0,0.00019171,2]
[350211889,1737695446924,-500.0,0.00019171,2]
[350211890,1737695446934,-311.24691757,0.00019171,2]
[350211891,1737695446944,-500.0,0.00019171,2]
[350211892,1737695446953,-500.0,0.00019171,2]
[350211893,1737695446962,-500.0,0.00019171,2]
[350211894,1737695446971,-505.53998656,0.00019171,2]
[350211895,1737695446980,-500.0,0.00019171,2]
[350211896,1737695446989,-500.0,0.00019171,2]
[350211897,1737695446998,-500.0,0.00019171,2]
[350211898,1737695447007,-500.0,0.00019171,2]
[350211899,1737695447016,-500.0,0.00019171,2]
[350211900,1737695447025,-500.0,0.00019171,2]
[350211901,1737695447035,-500.0,0.00019171,2]
[350211902,1737695447043,-519.85031619,0.00019171,2]
[350211903,1737695447053,-500.0,0.00019171,2]
[350211904,1737695447062,-500.0,0.00019171,2]
[350211905,1737695447071,-500.0,0.00019171,2]
[350211906,1737695447080,-507.66660105,0.00019171,2]
[350211907,1737695447089,-500.0,0.00019171,2]
[350211908,1737695447098,-507.21126143,0.00019171,2]
[350211909,1737695447107,-500.0,0.00019171,2]
[350211910,1737695447117,-181.1156742,0.00019171,2]
[350211911,1737695447126,-500.0,0.00019171,2]
[350211912,1737695447136,-500.0,0.00019171,2]
[350211913,1737695447145,-500.0,0.00019171,2]
[350211914,1737695447154,-500.0,0.00019171,2]
[350211915,1737695447163,-500.0,0.00019171,2]
[350211916,1737695447172,-500.0,0.00019171,2]
[350211917,1737695447181,-500.0,0.00019171,2]
[350211918,1737695447190,-276.25124504,0.00019171,2]
[350211919,1737695447199,-500.0,0.00019171,2]
[350211920,1737695447209,-500.0,0.00019171,2]
[350211921,1737695447218,-500.0,0.00019171,2]
[350211922,1737695447228,-198.34752935,0.00019171,2]
[350211923,1737695447237,-500.0,0.00019171,2]
[350211924,1737695447247,-500.0,0.00019171,2]
[350211925,1737695447256,-500.0,0.00019171,2]
[350211926,1737695447265,-500.0,0.00019171,2]
[350211927,1737695447274,-500.0,0.00019171,2]
[350211928,1737695447283,-500.0,0.00019171,2]
[350211929,1737695447292,-500.0,0.00019171,2]
[350211930,1737695447301,-500.0,0.00019171,2]
[350211931,1737695447310,-500.0,0.00019171,2]
[350211932,1737695447319,-500.0,0.00019171,2]
[350211933,1737695447329,-500.0,0.00019171,2]
[350211934,1737695447338,-500.0,0.00019171,2]
[350211935,1737695447347,-500.0,0.00019171,2]
[350211936,1737695447357,-500.0,0.00019171,2]
[350211937,1737695447366,-500.0,0.00019171,2]
[350211938,1737695447375,-226.24377736,0.00019171,2]
[350211939,1737695447384,-500.0,0.00019171,2]
[350211940,1737695447393,-500.0,0.00019171,2]
[350211941,1737695447402,-500.0,0.00019171,2]
[350211942,1737695447412,-500.0,0.00019171,2]
[350211943,1737695447422,-500.0,0.00019171,2]
[350211944,1737695447431,-500.0,0.00019171,2]
[350211945,1737695447440,-500.0,0.00019171,2]
[350211946,1737695447450,-500.0,0.00019171,2]
[350211947,1737695447459,-500.0,0.00019171,2]
[350211948,1737695447468,-516.18354789,0.00019171,2]
[350211949,1737695447477,-284.90906775,0.00019171,2]
[350211950,1737695447486,-509.38502825,0.00019171,2]
[350211951,1737695447495,-500.0,0.00019171,2]
[350211952,1737695447504,-500.0,0.00019171,2]
[350211953,1737695447513,-511.07872056,0.00019171,2]
[350211954,1737695447523,-504.70360878,0.00019171,2]
[350211955,1737695447532,-500.0,0.00019171,2]
[350211956,1737695447541,-508.45925521,0.00019171,2]
[350211957,1737695447549,-169.35788064,0.00019171,2]
[350211958,1737695447559,-506.09658533,0.00019171,2]
[350211959,1737695447568,-504.5552965,0.00019171,2]
[350211960,1737695447577,-500.0,0.00019171,2]
[350211961,1737695447589,-370.03752503,0.00019171,2]
[350211962,1737695447598,-500.0,0.00019171,2]
[350211963,1737695447607,-500.0,0.00019171,2]
[350211964,1737695447616,-502.09242378,0.00019171,2]
[350211965,1737695447625,-500.0,0.00019171,2]
[350211966,1737695447634,-500.0,0.00019171,2]
[350211967,1737695447643,-500.0,0.00019171,2]
[350211968,1737695447651,-539.45795492,0.00019171,2]
[350211969,1737695447660,-500.0,0.00019171,2]
[350211970,1737695447671,-500.0,0.00019171,2]
[350211971,1737695447680,-500.0,0.00019171,2]
[350211972,1737695447689,-500.0,0.00019171,2]
[350211973,1737695447699,-500.0,0.00019171,2]
[350211974,1737695447709,-500.0,0.00019171,2]
[350211975,1737695447877,-500.0,0.00019171,2]
[350211976,1737695447887,-509.98504145,0.00019171,2]
[350211977,1737695447896,-551.72308043,0.00019171,2]
[350211978,1737695447905,-500.0,0.00019171,2]
[350211979,1737695447915,-509.5125501,0.00019171,2]
[350211980,1737695447925,-500.0,0.00019171,2]
[350211981,1737695447934,-500.0,0.00019171,2]
[350211982,1737695447943,-500.0,0.00019171,2]
[350211983,1737695447953,-511.95604012,0.00019171,2]
[350211984,1737695447962,-500.0,0.00019171,2]
[350211985,1737695447970,-500.0,0.00019171,2]
[350211986,1737695447979,-500.0,0.00019171,2]
[350211987,1737695447988,-500.0,0.00019171,2]
[350211988,1737695447997,-500.0,0.00019171,2]
[350211989,1737695448006,-508.12237664,0.00019171,2]
[350211990,1737695448015,-516.92825474,0.00019171,2]
[350211991,1737695448024,-500.0,0.00019171,2]
[350211992,1737695448033,-500.0,0.00019171,2]
[350211993,1737695448043,-500.0,0.00019171,2]
[350211994,1737695448052,-500.0,0.00019171,2]
[350211995,1737695448061,-500.0,0.00019171,2]
[350211996,1737695448070,-500.0,0.00019171,2]
[350211997,1737695448079,-500.0,0.00019171,2]
[350211998,1737695448089,-436.976156,0.00019171,2]
[350211999,1737695448099,-748.75,0.00019171,2]
[350212000,1737695448108,-500.0,0.00019171,2]
[350212001,1737695448118,-1331.69,0.00019171,2]
[350212002,1737695448127,-1677.34,0.00019171,2]
[350212003,1737695448136,-500.0,0.00019171,2]
[350212004,1737695448145,-500.0,0.00019171,2]
[350212005,1737695448155,-1909.91,0.00019171,2]
[350212006,1737695448164,-500.0,0.00019171,2]
[350212007,1737695448173,-500.0,0.00019171,2]
[350212008,1737695448182,-500.0,0.00019171,2]
[350212009,1737695448193,-998.81,0.00019171,2]
[350212010,1737695448202,-500.0,0.00019171,2]
[350212011,1737695448212,-678.88,0.00019171,2]
[350212012,1737695448221,-500.0,0.00019171,2]
[350212013,1737695448231,-1960.8,0.00019171,2]
[350212014,1737695448240,-637.97,0.00019171,2]
[350212015,1737695448250,-963.77,0.00019171,2]
[350212016,1737695448258,-500.0,0.00019171,2]
[350212017,1737695448267,-705.36,0.00019171,2]
[350212018,1737695448276,-500.0,0.00019171,2]
[350212019,1737695448285,-500.0,0.00019171,2]
[350212020,1737695448294,-1349.69,0.00019171,2]
[350212021,1737695448303,-169.54281562,0.00019172,2]
[350212022,1737695448312,-500.0,0.00019172,2]
[350212023,1737695448322,-475.07167991,0.00019178,2]
[350212024,1737695448331,-167.66,0.00019195,2]
[350212025,1737695448340,-1205.99450203,0.00019228,2]
[350212026,1737695448349,-475.07167991,0.0001926,2]
[350212027,1737695448359,-300.42,0.0001926,2]
[350212028,1737695448368,-500.0,0.00019273,2]
[350212029,1737695448377,-500.0,0.00019273,2]
[350212030,1737695448387,-1205.99450203,0.00019337,2]
[350212031,1737695448396,-500.0,0.00019344,2]
[350212032,1737695448405,-475.07167991,0.0001937,2]
[350212033,1737695448414,-152.0,0.00019397,3]
[350212034,1737695448423,-164.29648912,0.000194,2]
[350212035,1737695448433,-150.7,0.00019433,2]
[350212036,1737695448442,-500.0,0.00019434,2]
[350212037,1737695448452,-500.0,0.00019434,2]
[350212038,1737695448461,-720.08,0.00019434,2]
[350212039,1737695448470,-1331.46,0.00019434,2]
[350212040,1737695448480,-500.0,0.00019434,2]
[350212041,1737695448489,-910.75,0.00019434,2]
[350212042,1737695448498,-500.0,0.00019434,2]
[350212043,1737695448508,-500.0,0.00019434,2]
[350212044,1737695448517,-760.09,0.00019434,2]
[350212045,1737695448527,-562.19,0.00019434,2]
[350212046,1737695448536,-500.0,0.00019434,2]
[350212047,1737695448545,-660.51,0.00019434,2]
[350212048,1737695448554,-500.0,0.00019434,2]
[350212049,1737695448564,-1564.46,0.00019434,2]
[350212050,1737695448573,-500.0,0.00019434,2]
[350212051,1737695448584,-1121.97,0.00019434,2]
[350212052,1737695448596,-178.16255009,0.00019435,2]
[350212053,1737695448605,-500.0,0.00019435,2]
[350212054,1737695448614,-500.0,0.00019435,2]
[350212055,1737695448624,-264.05381495,0.00019435,2]
[350212056,1737695448634,-332.68726613,0.00019435,2]
[350212057,1737695448643,-500.0,0.00019435,2]
[350212058,1737695448653,-500.0,0.00019435,2]
[350212059,1737695448662,-509.07032615,0.00019435,2]
[350212060,1737695448671,-500.0,0.00019435,2]
[350212061,1737695448681,-500.0,0.00019435,2]
[350212062,1737695448690,-500.0,0.00019435,2]
[350212063,1737695448702,-500.0,0.00019435,2]
[350212064,1737695448712,-500.0,0.00019435,2]
[350212065,1737695448721,-500.0,0.00019435,2]
[350212066,1737695448731,-505.70380439,0.00019435,2]
[350212067,1737695448740,-646.6552314,0.00019435,2]
[350212068,1737695448750,-500.0,0.00019435,2]
[350212069,1737695448759,-500.0,0.00019435,2]
[350212070,1737695448769,-500.0,0.00019435,2]
[350212071,1737695448778,-500.0,0.00019435,2]
[350212072,1737695448787,-500.0,0.00019435,2]
[350212073,1737695448796,-500.0,0.00019435,2]
[350212074,1737695448806,-496.01823524,0.00019435,2]
[350212075,1737695448815,-500.0,0.00019435,2]
[350212076,1737695448824,-500.0,0.00019435,2]
[350212077,1737695448834,-500.0,0.00019435,2]
[350212078,1737695448843,-500.0,0.00019435,2]
[350212079,1737695448852,-500.0,0.00019435,2]
[350212080,1737695448862,-508.27603006,0.00019435,2]
[350212081,1737695448872,-500.0,0.00019435,2]
[350212082,1737695448881,-500.0,0.00019435,2]
[350212083,1737695448890,-500.0,0.00019435,2]
[350212084,1737695448899,-500.0,0.00019435,2]
[350212085,1737695448909,-500.0,0.00019435,2]
[350212086,1737695448918,-500.0,0.00019435,2]
[350212087,1737695448929,-500.0,0.00019435,2]
[350212088,1737695448938,-159.50972566,0.00019435,2]
[350212089,1737695448948,-500.0,0.00019435,2]
[350212090,1737695448957,-500.0,0.00019435,2]
[350212091,1737695448970,-500.0,0.00019435,2]
[350212092,1737695448979,-500.0,0.00019435,2]
[350212093,1737695448988,-500.0,0.00019435,2]
[350212094,1737695448998,-505.87879411,0.00019435,2]
[350212095,1737695449007,-500.0,0.00019435,2]
[350212096,1737695449016,-504.48742236,0.00019435,2]
[350212097,1737695449025,-500.0,0.00019435,2]
[350212098,1737695449035,-532.37767107,0.00019435,2]
[350212099,1737695449044,-500.0,0.00019435,2]
[350212100,1737695449053,-500.0,0.00019435,2]
[350212101,1737695449062,-509.97165721,0.00019435,2]
[350212102,1737695449071,-500.0,0.00019435,2]
[350212103,1737695449081,-521.80072738,0.00019435,2]
[350212104,1737695449090,-500.0,0.00019435,2]
[350212105,1737695449099,-500.0,0.00019435,2]
[350212106,1737695449109,-500.0,0.00019435,2]
[350212107,1737695449118,-500.0,0.00019435,2]
[350212108,1737695449127,-500.0,0.00019435,2]
[350212109,1737695449136,-521.94494801,0.00019435,2]
[350212110,1737695449146,-509.49746703,0.00019435,2]
[350212111,1737695449156,-500.0,0.00019435,2]
[350212112,1737695449165,-468.67411461,0.00019435,2]
[350212113,1737695449175,-504.1943876,0.00019435,2]
[350212114,1737695449184,-500.0,0.00019435,2]
[350212115,1737695449196,-500.0,0.00019435,2]
[350212116,1737695449205,-500.0,0.00019435,2]
[350212117,1737695449215,-524.32254674,0.00019435,2]
[350212118,1737695449224,-252.97500995,0.00019435,2]
[350212119,1737695449233,-500.0,0.00019435,2]
[350212120,1737695449243,-500.0,0.00019435,2]
[350212121,1737695449252,-500.0,0.00019435,2]
[350212122,1737695449262,-643.38059658,0.00019435,2]
[350212123,1737695449271,-307.53383471,0.00019435,2]
[350212124,1737695449280,-500.0,0.00019435,2]
[350212125,1737695449289,-296.66298149,0.00019435,2]
[350212126,1737695449299,-569.31,0.00019435,2]
[350212127,1737695449308,-312.32939123,0.00019435,2]
[350212128,1737695449317,-534.30380353,0.00019435,2]
[350212129,1737695449327,-500.0,0.00019435,2]
[350212130,1737695449336,-502.120011,0.00019435,2]
[350212131,1737695449346,-500.0,0.00019435,2]
[350212132,1737695449355,-504.71416354,0.00019435,2]
[350212133,1737695449364,-500.0,0.00019435,2]
[350212134,1737695449373,-506.24041199,0.00019435,2]
[350212135,1737695449382,-500.0,0.00019435,2]
[350212136,1737695449391,-500.0,0.00019443,2]
[350212137,1737695449401,-500.0,0.00019443,2]
[350212138,1737695449410,-500.0,0.00019443,2]
[350212139,1737695449420,-500.0,0.00019443,2]
[350212140,1737695449430,-500.0,0.00019443,2]
[350212141,1737695449439,-500.0,0.00019443,2]
[350212142,1737695449450,-484.52924285,0.00019443,2]
[350212143,1737695449459,-232.19267145,0.00019443,2]
[350212144,1737695449468,-500.0,0.00019443,2]
[350212145,1737695449477,-500.0,0.00019443,2]
[350212146,1737695449486,-500.0,0.00019443,2]
[350212147,1737695449496,-561.23886591,0.00019443,2]
[350212148,1737695449505,-500.0,0.00019443,2]
[350212149,1737695449514,-500.0,0.00019443,2]
[350212150,1737695449523,-500.0,0.00019443,2]
[350212151,1737695449533,-500.0,0.00019443,2]
[350212152,1737695449542,-500.0,0.00019443,2]
[350212153,1737695449551,-500.0,0.00019443,2]
[350212154,1737695449561,-500.0,0.00019443,2]
[350212155,1737695449570,-500.0,0.00019443,2]
[350212156,1737695449580,-500.0,0.00019443,2]
[350212157,1737695449594,-500.0,0.00019443,2]
[350212158,1737695449603,-500.0,0.00019443,2]
[350212159,1737695449612,-500.0,0.00019443,2]
[350212160,1737695449623,-500.0,0.00019443,2]
[350212161,1737695449632,-613.24,0.00019443,2]
[350212162,1737695449641,-500.0,0.00019443,2]
[350212163,1737695449650,-417.42924285,0.00019443,2]
[350212164,1737695449659,-503.48524623,0.00019443,2]
[350212165,1737695449669,-500.0,0.00019443,2]
[350212166,1737695449679,-500.0,0.00019443,2]
[350212167,1737695449688,-507.29320875,0.00019443,2]
[350212168,1737695449697,-506.77756397,0.00019443,2]
[350212169,1737695449707,-500.0,0.00019443,2]
[350212170,1737695449716,-500.0,0.00019443,2]
[350212171,1737695449725,-500.0,0.00019443,2]
[350212172,1737695449734,-500.0,0.00019443,2]
[350212173,1737695449743,-503.94945356,0.00019443,2]
[350212174,1737695449752,-500.0,0.00019443,2]
[350212175,1737695449762,-500.0,0.00019443,2]
[350212176,1737695449771,-500.0,0.00019443,2]
[350212177,1737695449780,-500.0,0.00019443,2]
[350212178,1737695449789,-500.0,0.00019443,2]
[350212179,1737695449800,-500.0,0.00019443,2]
[350212180,1737695449809,-500.0,0.00019443,2]
[350212181,1737695449818,-500.0,0.00019443,2]
[350212182,1737695449828,-217.07672434,0.00019443,2]
[350212183,1737695449837,-500.0,0.00019443,2]
[350212184,1737695449846,-500.0,0.00019443,2]
[350212185,1737695449855,-399.57267204,0.00019443,2]
[350212186,1737695449864,-516.25286791,0.00019443,2]
[350212187,1737695449873,-500.0,0.00019443,2]
[350212188,1737695449883,-500.0,0.00019443,2]
[350212189,1737695449892,-500.0,0.00019443,2]
[350212190,1737695449901,-168.19797349,0.00019443,2]
[350212191,1737695449910,-500.0,0.00019443,2]
[350212192,1737695449919,-513.43491679,0.00019443,2]
[350212193,1737695449927,-374.83163673,0.00019443,2]
[350212194,1737695449936,-254.80052051,0.00019443,2]
[350212195,1737695449948,-500.0,0.00019443,2]
[350212196,1737695449956,-500.0,0.00019443,2]
[350212197,1737695449967,-456.4905727,0.00019443,2]
[350212198,1737695449975,-387.41596381,0.00019443,2]
[350212199,1737695449985,-500.0,0.00019443,2]
[350212200,1737695449993,-500.0,0.00019443,2]
[350212201,1737695450002,-500.0,0.00019443,2]
[350212202,1737695450013,-200.0,0.00019443,2]
[350212203,1737695450022,-500.0,0.00019443,2]
[350212204,1737695450031,-500.0,0.00019443,2]
[350212205,1737695450040,-500.0,0.00019443,2]
[350212206,1737695450049,-500.0,0.00019443,2]
[350212207,1737695450059,-500.0,0.00019443,2]
[350212208,1737695450068,-500.0,0.00019443,2]
[350212209,1737695450077,-500.0,0.00019443,2]
[350212210,1737695450087,-500.0,0.00019443,2]
[350212211,1737695450096,-500.0,0.00019443,2]
[350212212,1737695450105,-500.0,0.00019443,2]
[350212213,1737695450114,-500.0,0.00019443,2]
[350212214,1737695450123,-500.0,0.00019443,2]
[350212215,1737695450134,-500.0,0.00019443,2]
[350212216,1737695450143,-500.0,0.00019443,2]
[350212217,1737695450152,-500.0,0.00019443,2]
[350212218,1737695450161,-500.0,0.00019443,2]
[350212219,1737695450171,-500.0,0.00019443,2]
[350212220,1737695450181,-500.0,0.00019443,2]
[350212221,1737695450190,-500.0,0.00019443,2]
[350212222,1737695450200,-552.55121327,0.00019443,2]
[350212223,1737695450210,-500.0,0.00019443,2]
[350212224,1737695450219,-500.0,0.00019443,2]
[350212225,1737695450228,-500.0,0.00019443,2]
[350212226,1737695450238,-500.0,0.00019443,2]
[350212227,1737695450248,-500.0,0.00019443,2]
[350212228,1737695450258,-500.0,0.00019443,2]
[350212229,1737695450268,-500.0,0.00019443,2]
[350212230,1737695450278,-500.0,0.00019443,2]
[350212231,1737695450288,-500.0,0.00019443,2]
[350212232,1737695450298,-500.0,0.00019443,2]
[350212233,1737695450308,-500.0,0.00019443,2]
[350212234,1737695450317,-500.0,0.00019443,2]
[350212235,1737695450327,-500.0,0.00019443,2]
[350212236,1737695450336,-500.0,0.00019443,2]
[350212237,1737695450345,-500.0,0.00019443,2]
[350212238,1737695450355,-500.0,0.00019443,2]
[350212239,1737695450364,-500.0,0.00019443,2]
[350212240,1737695450374,-500.0,0.00019443,2]
[350212241,1737695450383,-500.0,0.00019443,2]
[350212242,1737695450392,-500.0,0.00019443,2]
[350212243,1737695450401,-500.0,0.00019443,2]
[350212244,1737695450410,-500.0,0.00019443,2]
[350212245,1737695450419,-500.0,0.00019443,2]
[350212246,1737695450428,-343.66885143,0.00019443,2]
[350212247,1737695450437,-500.0,0.00019443,2]
[350212248,1737695450447,-502.16021359,0.00019443,2]
[350212249,1737695450458,-500.0,0.00019443,2]
[350212250,1737695450469,-500.0,0.00019443,2]
[350212251,1737695450479,-500.0,0.00019443,2]
[350212252,1737695450490,-508.70006284,0.00019443,2]
[350212253,1737695450500,-475.0,0.00019443,2]
[350212254,1737695450509,-500.0,0.00019443,2]
[350212255,1737695450519,-500.0,0.00019443,2]
[350212256,1737695450528,-500.0,0.00019443,2]
[350212257,1737695450537,-500.0,0.00019443,2]
[350212258,1737695450547,-500.0,0.00019443,2]
[350212259,1737695450557,-500.0,0.00019443,2]
[350212260,1737695450566,-500.0,0.00019443,2]
[350212261,1737695450576,-500.0,0.00019443,2]
[350212262,1737695450586,-519.48146297,0.00019443,2]
[350212263,1737695450596,-500.0,0.00019443,2]